fUST/lending_fUST_20250628
["ID","MTS","AMOUNT","RATE_DAILY","PERIOD"]
[368290644,1751094648727,-992.99,0.00020821,2]
[368290645,1751094648846,-659.31,0.00020821,2]
[368290646,1751094648856,-2141.39,0.00020821,2]
[368290647,1751094648866,-668.97,0.00020821,2]
[368290648,1751094648876,-568.17,0.00020821,2]
[368290649,1751094648886,-584.23005202,0.00020821,2]
[368290650,1751094648896,-500.0,0.00020821,2]
[368290651,1751094648905,-460.0,0.00020821,2]
[368290652,1751094648915,-306.82598111,0.00020821,2]
[368290653,1751094648924,-506.7,0.00020821,2]
[368290654,1751094648934,-2083.95,0.00020821,2]
[368290655,1751094648944,-1500.0,0.00020833,2]
[368290656,1751094648954,-716.195754,0.00020848,2]
[368290657,1751094648965,-154.598789,0.00020865,2]
[368290658,1751094648974,-9950.03549666,0.00020866,4]
[368290659,1751094648984,-151.0,0.000209,4]
[368290660,1751094648993,-742.6949969,0.00020903,2]
[368290661,1751094649003,-770.17471178,0.00020958,2]
[368290662,1751094649013,-1844.80252236,0.00021,2]
[368290663,1751094649023,-212.9,0.00021026,4]
[368290664,1751094649032,-514.21082794,0.00021064,2]
[368290665,1751094649042,-460.0,0.00021095,2]
[368290666,1751094649052,-460.0,0.00021095,2]
[368290667,1751094649062,-823.67,0.00021095,2]
[368290668,1751094649072,-460.0,0.00021095,2]
[368290669,1751094649081,-460.0,0.00021095,2]
[368290670,1751094649091,-460.0,0.00021095,2]
[368290671,1751094649100,-460.0,0.00021095,2]
[368290672,1751094649110,-430.33427341,0.00021095,2]
[368290673,1751094649119,-5301.63,0.00021095,2]
[368290674,1751094649129,-460.0,0.00021095,2]
[368290675,1751094649139,-1038.0,0.00021095,2]
[368290676,1751094649148,-460.0,0.00021095,2]
[368290677,1751094649158,-1637.92,0.00021095,2]
[368290678,1751094649168,-1699.45,0.00021095,2]
[368290679,1751094649177,-862.06,0.00021095,2]
[368290680,1751094649187,-3162.09,0.00021095,2]
[368290681,1751094649196,-531.66,0.00021095,2]
[368290682,1751094649206,-460.0,0.00021095,2]
[368290683,1751094649217,-778.72,0.00021095,2]
[368290684,1751094649226,-1633.53,0.00021095,2]
[368290685,1751094649236,-460.0,0.00021095,2]
[368290686,1751094649245,-460.0,0.00021095,2]
[368290687,1751094649255,-2727.76,0.00021095,2]
[368290688,1751094649265,-833.98,0.00021095,2]
[368290689,1751094649275,-635.12,0.00021095,2]
[368290690,1751094649284,-460.0,0.00021095,2]
[368290691,1751094649294,-822.76,0.00021095,2]
[368290692,1751094649303,-604.17851885,0.00021095,2]
[368290693,1751094649312,-460.0,0.00021095,2]
[368290694,1751094649322,-764.45,0.00021095,2]
[368290695,1751094649331,-460.0,0.00021095,2]
[368290696,1751094649341,-151.0,0.00021095,2]
[368290697,1751094649351,-601.84,0.00021095,2]
[368290698,1751094649360,-460.0,0.00021095,2]
[368290699,1751094649370,-2830.86,0.00021095,2]
[368290700,1751094649379,-617.3,0.00021095,2]
[368290701,1751094649389,-460.0,0.00021095,2]
[368290702,1751094649399,-151.0,0.00021095,2]
[368290703,1751094649408,-460.0,0.00021095,2]
[368290704,1751094649418,-466.54,0.00021095,2]
[368290705,1751094649427,-151.0,0.00021095,2]
[368290706,1751094649438,-487.16,0.00021095,2]
[368290707,1751094649448,-460.0,0.00021095,2]
[368290708,1751094649457,-2150.34,0.00021095,2]
[368290709,1751094649466,-460.0,0.00021095,2]
[368290710,1751094649476,-1076.08,0.00021095,2]
[368290711,1751094649485,-551.56,0.00021095,2]
[368290712,1751094649495,-460.0,0.00021095,2]
[368290713,1751094649504,-460.0,0.00021095,2]
[368290714,1751094649514,-3405.57,0.00021095,2]
[368290715,1751094649523,-460.0,0.00021095,2]
[368290716,1751094649533,-460.0,0.00021095,2]
[368290717,1751094649543,-2514.69,0.00021095,2]
[368290718,1751094649552,-1181.02,0.00021095,2]
[368290719,1751094649561,-460.0,0.00021095,2]
[368290720,1751094649571,-557.09,0.00021095,2]
[368290721,1751094649580,-267.33238559,0.00021095,2]
[368290722,1751094649590,-460.0,0.00021095,2]
[368290723,1751094649599,-460.0,0.00021095,2]
[368290724,1751094649609,-460.0,0.00021095,2]
[368290725,1751094649618,-477.9223269,0.00021095,2]
[368290726,1751094649627,-465.55,0.00021095,2]
[368290727,1751094649637,-1418.65,0.00021095,2]
[368290728,1751094649646,-259.443725,0.00021095,2]
[368290729,1751094649657,-493.17,0.00021095,2]
[368290730,1751094649666,-2065.34,0.00021095,2]
[368290731,1751094649676,-460.0,0.00021095,2]
[368290732,1751094649686,-1869.93,0.00021095,2]
[368290733,1751094649695,-151.0,0.00021095,2]
[368290734,1751094649704,-259.443725,0.00021095,2]
[368290735,1751094649714,-4376.08,0.00021095,2]
[368290736,1751094649723,-151.0,0.00021095,2]
[368290737,1751094649733,-202.063746,0.00021095,2]
[368290738,1751094649742,-151.0,0.00021095,2]
[368290739,1751094649752,-463.71,0.00021095,2]
[368290740,1751094649761,-460.0,0.00021095,2]
[368290741,1751094649770,-229.874466,0.00021095,2]
[368290742,1751094649779,-151.0,0.00021095,2]
[368290743,1751094649788,-1857.96,0.00021095,2]
[368290744,1751094649797,-229.874466,0.00021095,2]
[368290745,1751094649807,-460.0,0.00021095,2]
[368290746,1751094649816,-747.42,0.00021095,2]
[368290747,1751094649825,-992.99,0.00021095,2]
[368290748,1751094649835,-151.0,0.00021095,2]
[368290749,1751094649844,-659.31,0.00021095,2]
[368290750,1751094649854,-2141.39,0.00021095,2]
[368290751,1751094649863,-668.97,0.00021095,2]
[368290752,1751094649873,-151.0,0.00021095,2]
[368290753,1751094649882,-568.17,0.00021095,2]
[368290754,1751094649892,-442.340623,0.00021095,2]
[368290755,1751094649901,-151.237257,0.00021095,2]
[368290756,1751094649911,-460.0,0.00021095,2]
[368290757,1751094649920,-442.340623,0.00021095,2]
[368290758,1751094649929,-197.389886,0.00021095,2]
[368290759,1751094649938,-151.0,0.00021095,2]
[368290760,1751094649948,-506.7,0.00021095,2]
[368290761,1751094649958,-2083.95,0.00021095,2]
[368290762,1751094649968,-9950.03549666,0.00021107,4]
[368290763,1751094649977,-151.0,0.00021107,2]
[368290764,1751094649987,-151.0,0.00021107,2]
[368290765,1751094649996,-151.0,0.00021107,2]
[368290766,1751094650005,-283.97372,0.00021107,2]
[368290767,1751094650015,-283.97372,0.00021107,2]
[368290768,1751094650025,-151.0,0.00021107,2]
[368290769,1751094650036,-151.0,0.00021107,2]
[368290770,1751094650045,-151.0,0.00021107,2]
[368290771,1751094650054,-151.0,0.00021107,2]
[368290772,1751094650063,-151.0,0.00021107,2]
[368290773,1751094650073,-151.0,0.00021107,2]
[368290774,1751094650083,-151.0,0.00021107,2]
[368290775,1751094650093,-168.0,0.00021114,2]
[368290776,1751094650102,-151.0,0.000212,4]
[368290777,1751094650111,-500.0,0.000212,2]
[368290778,1751094650121,-500.0,0.000212,2]
[368290779,1751094650132,-500.0,0.000212,2]
[368290780,1751094650141,-417.25276564,0.000212,2]
[368290781,1751094650151,-2000.0,0.00021228,2]
[368290782,1751094650162,-212.9,0.00021264,4]
[368290783,1751094650171,-5000.0,0.00021286,2]
[368290784,1751094650180,-9950.03549666,0.00021348,5]
[368290785,1751094650190,-1008.02982385,0.00021358,2]
[368290786,1751094650199,-460.0,0.00021369,2]
[368290787,1751094650208,-460.0,0.00021369,2]
[368290788,1751094650218,-823.67,0.00021369,2]
[368290789,1751094650227,-452.75039927,0.00021369,2]
[368290790,1751094650237,-460.0,0.00021369,2]
[368290791,1751094650248,-460.0,0.00021369,2]
[368290792,1751094650258,-179.175915,0.00021369,2]
[368290793,1751094650267,-151.0,0.00021369,2]
[368290794,1751094650277,-460.0,0.00021369,2]
[368290795,1751094650286,-5301.63,0.00021369,2]
[368290796,1751094650296,-460.0,0.00021369,2]
[368290797,1751094650305,-1038.0,0.00021369,2]
[368290799,1751094650315,-460.0,0.00021369,2]
[368290800,1751094650325,-1637.92,0.00021369,2]
[368290801,1751094650334,-1699.45,0.00021369,2]
[368290802,1751094650344,-862.06,0.00021369,2]
[368290803,1751094650353,-3162.09,0.00021369,2]
[368290804,1751094650363,-531.66,0.00021369,2]
[368290805,1751094650372,-460.0,0.00021369,2]
[368290806,1751094650381,-778.72,0.00021369,2]
[368290807,1751094650390,-1633.53,0.00021369,2]
[368290808,1751094650399,-460.0,0.00021369,2]
[368290809,1751094650408,-460.0,0.00021369,2]
[368290810,1751094650418,-2727.76,0.00021369,2]
[368290811,1751094650428,-833.98,0.00021369,2]
[368290812,1751094650441,-635.12,0.00021369,2]
[368290813,1751094650451,-460.0,0.00021369,2]
[368290814,1751094650460,-822.76,0.00021369,2]
[368290815,1751094650469,-313.12360558,0.00021369,2]
[368290816,1751094650478,-764.45,0.00021369,2]
[368290817,1751094650487,-460.0,0.00021369,2]
[368290818,1751094650496,-601.84,0.00021369,2]
[368290819,1751094650506,-460.0,0.00021369,2]
[368290820,1751094650515,-2830.86,0.00021369,2]
[368290821,1751094650525,-617.3,0.00021369,2]
[368290822,1751094650534,-460.0,0.00021369,2]
[368290823,1751094650543,-460.0,0.00021369,2]
[368290824,1751094650553,-466.54,0.00021369,2]
[368290825,1751094650563,-487.16,0.00021369,2]
[368290826,1751094650573,-460.0,0.00021369,2]
[368290827,1751094650582,-2150.34,0.00021369,2]
[368290828,1751094650591,-460.0,0.00021369,2]
[368290830,1751094650600,-1076.08,0.00021369,2]
[368290831,1751094650609,-551.56,0.00021369,2]
[368290832,1751094650618,-460.0,0.00021369,2]
[368290833,1751094650628,-460.0,0.00021369,2]
[368290834,1751094650638,-3405.57,0.00021369,2]
[368290835,1751094650647,-460.0,0.00021369,2]
[368290836,1751094650656,-460.0,0.00021369,2]
[368290837,1751094650665,-2514.69,0.00021369,2]
[368290838,1751094650675,-1181.02,0.00021369,2]
[368290839,1751094650684,-460.0,0.00021369,2]
[368290840,1751094650693,-557.09,0.00021369,2]
[368290841,1751094650702,-460.0,0.00021369,2]
[368290842,1751094650711,-460.0,0.00021369,2]
[368290843,1751094650720,-460.0,0.00021369,2]
[368290844,1751094650730,-465.55,0.00021369,2]
[368290845,1751094650739,-1418.65,0.00021369,2]
[368290846,1751094650749,-493.17,0.00021369,2]
[368290847,1751094650758,-2065.34,0.00021369,2]
[368290848,1751094650768,-1869.93,0.00021369,2]
[368290849,1751094650777,-460.0,0.00021369,2]
[368290850,1751094650786,-4376.08,0.00021369,2]
[368290851,1751094650795,-463.71,0.00021369,2]
[368290852,1751094650805,-460.0,0.00021369,2]
[368290853,1751094650815,-1857.96,0.00021369,2]
[368290854,1751094650825,-460.0,0.00021369,2]
[368290855,1751094650834,-747.42,0.00021369,2]
[368290856,1751094650844,-992.99,0.00021369,2]
[368290857,1751094650853,-659.31,0.00021369,2]
[368290858,1751094650863,-2141.39,0.00021369,2]
[368290859,1751094650872,-668.97,0.00021369,2]
[368290860,1751094650882,-568.17,0.00021369,2]
[368290861,1751094650891,-460.0,0.00021369,2]
[368290862,1751094650900,-506.7,0.00021369,2]
[368290863,1751094650909,-2083.95,0.00021369,2]
[368290865,1751094650918,-1000.0,0.00021381,2]
[368290866,1751094650927,-472.98,0.00021416,2]
[368290867,1751094650937,-314.0,0.00021482,2]
[368290868,1751094650947,-151.0,0.000215,3]
[368290869,1751094650957,-212.9,0.00021501,4]
[368290870,1751094650966,-480.0457249,0.00021507,2]
[368290871,1751094650976,-502.89520889,0.0002154,2]
[368290872,1751094650985,-500.0,0.00021544,2]
[368290873,1751094650995,-1844.80252236,0.0002155,2]
[368290874,1751094651004,-500.0,0.00021563,2]
[368290875,1751094651013,-500.0,0.00021563,2]
[368290876,1751094651023,-500.0,0.00021563,2]
[368290877,1751094651032,-500.0,0.00021563,2]
[368290878,1751094651045,-500.0,0.00021563,2]
[368290879,1751094651055,-500.0,0.00021563,2]
[368290880,1751094651063,-500.0,0.00021563,2]
[368290881,1751094651073,-500.0,0.00021563,2]
[368290882,1751094651083,-500.0,0.00021563,2]
[368290883,1751094651092,-563.71744148,0.00021563,2]
[368290884,1751094651102,-500.0,0.00021563,2]
[368290885,1751094651111,-500.0,0.00021563,2]
[368290886,1751094651120,-232004.77803,0.00021589,2]
[368290887,1751094651129,-9950.03549666,0.0002159,5]
[368290888,1751094651139,-151.0,0.0002159,2]
[368290889,1751094651148,-151.0,0.0002159,2]
[368290890,1751094651157,-151.0,0.0002159,2]
[368290891,1751094651167,-156.682528,0.0002159,2]
[368290892,1751094651176,-151.0,0.0002159,2]
[368290893,1751094651186,-252.339413,0.0002159,2]
[368290894,1751094651196,-252.339413,0.0002159,2]
[368290895,1751094651205,-500.0,0.0002159,2]
[368290897,1751094651214,-250.61579484,0.0002159,2]
[368290898,1751094651223,-500.0,0.0002159,2]
[368290899,1751094651232,-500.0,0.0002159,2]
[368290900,1751094651241,-460.0,0.00021643,2]
[368290901,1751094651250,-460.0,0.00021643,2]
[368290902,1751094651259,-823.67,0.00021643,2]
[368290903,1751094651268,-151.0,0.00021643,2]
[368290904,1751094651278,-151.0,0.00021643,2]
[368290905,1751094651287,-460.0,0.00021643,2]
[368290906,1751094651296,-151.0,0.00021643,2]
[368290907,1751094651305,-460.0,0.00021643,2]
[368290908,1751094651315,-653.742723,0.00021643,2]
[368290909,1751094651324,-653.742723,0.00021643,2]
[368290910,1751094651334,-460.0,0.00021643,2]
[368290911,1751094651343,-5301.63,0.00021643,2]
[368290912,1751094651353,-460.0,0.00021643,2]
[368290913,1751094651362,-1038.0,0.00021643,2]
[368290914,1751094651371,-460.0,0.00021643,2]
[368290915,1751094651482,-1637.92,0.00021643,2]
[368290916,1751094651492,-1699.45,0.00021643,2]
[368290917,1751094651502,-862.06,0.00021643,2]
[368290918,1751094651511,-3162.09,0.00021643,2]
[368290919,1751094651520,-531.66,0.00021643,2]
[368290920,1751094651529,-460.0,0.00021643,2]
[368290921,1751094651538,-778.72,0.00021643,2]
[368290922,1751094651549,-1633.53,0.00021643,2]
[368290923,1751094651558,-460.0,0.00021643,2]
[368290924,1751094651567,-2727.76,0.00021643,2]
[368290925,1751094651576,-833.98,0.00021643,2]
[368290926,1751094651586,-460.0,0.00021643,2]
[368290927,1751094651595,-635.12,0.00021643,2]
[368290928,1751094651605,-460.0,0.00021643,2]
[368290929,1751094651614,-822.76,0.00021643,2]
[368290930,1751094651623,-764.45,0.00021643,2]
[368290931,1751094651633,-460.0,0.00021643,2]
[368290932,1751094651642,-601.84,0.00021643,2]
[368290933,1751094651652,-460.0,0.00021643,2]
[368290934,1751094651661,-2830.86,0.00021643,2]
[368290935,1751094651671,-617.3,0.00021643,2]
[368290936,1751094651680,-460.0,0.00021643,2]
[368290937,1751094651690,-460.0,0.00021643,2]
[368290938,1751094651700,-466.54,0.00021643,2]
[368290939,1751094651709,-487.16,0.00021643,2]
[368290940,1751094651719,-465.7225414,0.00021643,2]
[368290941,1751094651728,-2150.34,0.00021643,2]
[368290942,1751094651737,-433.132882,0.00021643,2]
[368290943,1751094651746,-1076.08,0.00021643,2]
[368290944,1751094651756,-551.56,0.00021643,2]
[368290945,1751094651765,-460.0,0.00021643,2]
[368290946,1751094651775,-460.0,0.00021643,2]
[368290947,1751094651784,-3405.57,0.00021643,2]
[368290948,1751094651794,-460.0,0.00021643,2]
[368290949,1751094651804,-460.0,0.00021643,2]
[368290950,1751094651813,-2514.69,0.00021643,2]
[368290951,1751094651823,-1181.02,0.00021643,2]
[368290952,1751094651832,-460.0,0.00021643,2]
[368290953,1751094651842,-557.09,0.00021643,2]
[368290954,1751094651852,-460.0,0.00021643,2]
[368290955,1751094651861,-460.0,0.00021643,2]
[368290956,1751094651870,-460.0,0.00021643,2]
[368290957,1751094651880,-465.55,0.00021643,2]
[368290958,1751094651890,-1418.65,0.00021643,2]
[368290959,1751094651900,-493.17,0.00021643,2]
[368290960,1751094651909,-2065.34,0.00021643,2]
[368290961,1751094651918,-1869.93,0.00021643,2]
[368290962,1751094651928,-460.0,0.00021643,2]
[368290963,1751094651940,-4376.08,0.00021643,2]
[368290964,1751094651949,-463.71,0.00021643,2]
[368290965,1751094651959,-460.0,0.00021643,2]
[368290966,1751094651968,-1857.96,0.00021643,2]
[368290967,1751094651978,-460.0,0.00021643,2]
[368290968,1751094651987,-747.42,0.00021643,2]
[368290969,1751094651997,-992.99,0.00021643,2]
[368290970,1751094652006,-659.31,0.00021643,2]
[368290971,1751094652016,-2141.39,0.00021643,2]
[368290972,1751094652025,-668.97,0.00021643,2]
[368290973,1751094652036,-568.17,0.00021643,2]
[368290974,1751094652045,-460.0,0.00021643,2]
[368290975,1751094652054,-506.7,0.00021643,2]
[368290976,1751094652063,-2083.95,0.00021643,2]
[368290977,1751094652072,-575.2177202,0.00021644,2]
[368290978,1751094652082,-307.3890461,0.00021644,2]
[368290979,1751094652091,-159.266168,0.00021644,2]
[368290980,1751094652100,-177.5104021,0.00021644,2]
[368290981,1751094652110,-575.2177202,0.00021644,2]
[368290982,1751094652120,-159.266168,0.00021644,2]
[368290983,1751094652129,-177.5104021,0.00021644,2]
[368290984,1751094652138,-177.5104021,0.00021644,2]
[368290985,1751094652148,-575.2177202,0.00021644,2]
[368290986,1751094652157,-159.266168,0.00021644,2]
[368290987,1751094652167,-159.266168,0.00021644,2]
[368290988,1751094652176,-177.5104021,0.00021644,2]
[368290989,1751094652186,-575.2177202,0.00021644,2]
[368290990,1751094652195,-575.2177202,0.00021644,2]
[368290991,1751094652204,-159.266168,0.00021644,2]
[368290992,1751094652213,-177.5104021,0.00021644,2]
[368290993,1751094652223,-162972.52883626,0.0002165,5]
[368290994,1751094652232,-151.0,0.0002165,2]
[368290995,1751094652241,-251.333474,0.0002165,2]
[368290996,1751094652250,-251.333474,0.0002165,2]
[368290997,1751094652259,-151.0,0.0002165,2]
[368290998,1751094652269,-151.0,0.0002165,2]
[368290999,1751094652278,-151.0,0.0002165,2]
[368291000,1751094652287,-151.0,0.0002165,2]
[368291001,1751094652296,-283.97372,0.0002165,2]
[368291002,1751094652306,-283.97372,0.0002165,2]
[368291003,1751094652316,-151.0,0.0002165,2]
[368291004,1751094652325,-151.0,0.0002165,2]
[368291005,1751094652335,-151.0,0.0002165,2]
[368291006,1751094652344,-151.0,0.0002165,2]
[368291007,1751094652354,-153.1629,0.0002165,2]
[368291008,1751094652363,-151.0,0.0002165,2]
[368291009,1751094652373,-151.0,0.0002165,2]
[368291010,1751094652382,-151.0,0.0002165,2]
[368291011,1751094652391,-151.0,0.0002165,2]
[368291012,1751094652401,-151.99377,0.0002165,2]
[368291013,1751094652411,-259.443725,0.0002165,2]
[368291014,1751094652420,-151.0,0.0002165,2]
[368291015,1751094652430,-259.443725,0.0002165,2]
[368291016,1751094652441,-151.0,0.0002165,2]
[368291017,1751094652450,-155.880163,0.0002165,2]
[368291018,1751094652459,-229.874466,0.0002165,2]
[368291019,1751094652469,-229.874466,0.0002165,2]
[368291020,1751094652479,-155.675308,0.0002165,2]
[368291021,1751094652488,-442.340623,0.0002165,2]
[368291022,1751094652497,-442.340623,0.0002165,2]
[368291023,1751094652507,-500.0,0.00021678,2]
[368291024,1751094652516,-500.0,0.00021678,2]
[368291025,1751094652525,-500.0,0.00021678,2]
[368291026,1751094652535,-500.0,0.00021678,2]
[368291027,1751094652544,-500.0,0.00021678,2]
[368291028,1751094652553,-500.0,0.00021678,2]
[368291029,1751094652562,-500.0,0.00021678,2]
[368291030,1751094652571,-501.12105409,0.00021678,2]
[368291031,1751094652580,-500.0,0.00021678,2]
[368291032,1751094652590,-600.0,0.00021678,2]
[368291033,1751094652599,-500.0,0.00021678,2]
[368291034,1751094652608,-500.0,0.00021678,2]
[368291035,1751094652618,-500.0,0.00021678,2]
[368291036,1751094652627,-501.47258747,0.00021678,2]
[368291037,1751094652637,-7054.58916906,0.00021698,2]
[368291038,1751094652646,-3797.86,0.000217,2]
[368291039,1751094652656,-212.9,0.00021738,4]
[368291040,1751094652666,-413.815039,0.00021756,4]
[368291041,1751094652676,-2500.0,0.00021776,2]
[368291042,1751094652685,-500.0,0.0002178,17]
[368291043,1751094652695,-3000.0,0.000218,2]
[368291044,1751094652704,-3000.0,0.0002181,2]
[368291045,1751094652714,-151.0,0.00021819,2]
[368291046,1751094652724,-151.0,0.00021819,2]
[368291047,1751094652733,-216.39733,0.00021819,2]
[368291048,1751094652742,-216.39733,0.00021819,2]
[368291049,1751094652752,-151.0,0.00021819,2]
[368291050,1751094652762,-3000.0,0.0002182,2]
[368291051,1751094652771,-3000.0,0.0002183,2]
[368291052,1751094652782,-151.0,0.00021831,2]
[368291053,1751094652791,-151.0,0.00021831,2]
[368291054,1751094652801,-252.339413,0.00021831,2]
[368291055,1751094652810,-252.339413,0.00021831,2]
[368291056,1751094652820,-9950.03549666,0.00021831,6]
[368291057,1751094652830,-5000.0,0.00021834,2]
[368291058,1751094652840,-3000.0,0.0002184,2]
[368291059,1751094652849,-152.636,0.00021847,2]
[368291060,1751094652859,-242.7,0.00021847,2]
[368291061,1751094652868,-200.426,0.00021847,2]
[368291062,1751094652878,-3000.0,0.0002185,2]
[368291063,1751094652888,-3000.0,0.0002186,2]
[368291064,1751094652897,-3000.0,0.0002187,2]
[368291065,1751094652907,-168.0,0.0002188,2]
[368291066,1751094652916,-620.40447539,0.00021889,2]
[368291067,1751094652926,-151.0,0.00021896,2]
[368291068,1751094652935,-151.0,0.00021896,2]
[368291069,1751094652945,-151.0,0.00021896,2]
[368291070,1751094652954,-653.742723,0.00021896,2]
[368291071,1751094652964,-653.742723,0.00021896,2]
[368291072,1751094652973,-213.731,0.00021896,2]
[368291073,1751094652983,-249.539,0.00021896,2]
[368291074,1751094652994,-195.688,0.00021896,2]
[368291075,1751094653003,-259.047,0.00021896,2]
[368291076,1751094653012,-217.077,0.00021896,2]
[368291077,1751094653022,-968.174,0.00021896,2]
[368291078,1751094653032,-2161.0,0.00021896,2]
[368291079,1751094653041,-654.0,0.00021896,2]
[368291080,1751094653051,-2780.28,0.000219,2]
[368291081,1751094653061,-4807.20385611,0.000219,2]
[368291082,1751094653070,-200.0,0.0002191,3]
[368291083,1751094653079,-460.0,0.00021917,2]
[368291084,1751094653089,-460.0,0.00021917,2]
[368291085,1751094653098,-823.67,0.00021917,2]
[368291086,1751094653107,-476.45581029,0.00021917,2]
[368291087,1751094653116,-460.0,0.00021917,2]
[368291088,1751094653126,-5301.63,0.00021917,2]
[368291089,1751094653136,-460.0,0.00021917,2]
[368291090,1751094653145,-1038.0,0.00021917,2]
[368291091,1751094653154,-460.0,0.00021917,2]
[368291092,1751094653163,-1637.92,0.00021917,2]
[368291093,1751094653173,-1699.45,0.00021917,2]
[368291094,1751094653183,-862.06,0.00021917,2]
[368291095,1751094653193,-3162.09,0.00021917,2]
[368291096,1751094653202,-531.66,0.00021917,2]
[368291097,1751094653211,-460.0,0.00021917,2]
[368291098,1751094653220,-778.72,0.00021917,2]
[368291099,1751094653229,-1633.53,0.00021917,2]
[368291100,1751094653239,-362.13523528,0.00021917,2]
[368291101,1751094653249,-2727.76,0.00021917,2]
[368291102,1751094653258,-833.98,0.00021917,2]
[368291103,1751094653268,-460.0,0.00021917,2]
[368291104,1751094653277,-635.12,0.00021917,2]
[368291105,1751094653286,-460.0,0.00021917,2]
[368291106,1751094653296,-822.76,0.00021917,2]
[368291107,1751094653305,-764.45,0.00021917,2]
[368291108,1751094653315,-460.0,0.00021917,2]
[368291109,1751094653325,-601.84,0.00021917,2]
[368291110,1751094653335,-460.0,0.00021917,2]
[368291111,1751094653346,-2830.86,0.00021917,2]
[368291112,1751094653356,-617.3,0.00021917,2]
[368291113,1751094653365,-460.0,0.00021917,2]
[368291114,1751094653375,-460.0,0.00021917,2]
[368291115,1751094653385,-466.54,0.00021917,2]
[368291116,1751094653394,-487.16,0.00021917,2]
[368291117,1751094653403,-2150.34,0.00021917,2]
[368291118,1751094653413,-1076.08,0.00021917,2]
[368291119,1751094653423,-551.56,0.00021917,2]
[368291120,1751094653432,-460.0,0.00021917,2]
[368291121,1751094653445,-460.0,0.00021917,2]
[368291122,1751094653455,-3405.57,0.00021917,2]
[368291123,1751094653465,-460.0,0.00021917,2]
[368291124,1751094653474,-460.0,0.00021917,2]
[368291125,1751094653483,-2514.69,0.00021917,2]
[368291126,1751094653492,-1181.02,0.00021917,2]
[368291127,1751094653502,-460.0,0.00021917,2]
[368291128,1751094653511,-557.09,0.00021917,2]
[368291129,1751094653521,-460.0,0.00021917,2]
[368291130,1751094653530,-460.0,0.00021917,2]
[368291131,1751094653539,-460.0,0.00021917,2]
[368291132,1751094653549,-465.55,0.00021917,2]
[368291133,1751094653558,-1418.65,0.00021917,2]
[368291134,1751094653568,-493.17,0.00021917,2]
[368291135,1751094653578,-2065.34,0.00021917,2]
[368291136,1751094653587,-1869.93,0.00021917,2]
[368291137,1751094653596,-460.0,0.00021917,2]
[368291138,1751094653606,-4376.08,0.00021917,2]
[368291139,1751094653615,-463.71,0.00021917,2]
[368291140,1751094653624,-460.0,0.00021917,2]
[368291141,1751094653634,-1857.96,0.00021917,2]
[368291142,1751094653644,-460.0,0.00021917,2]
[368291143,1751094653653,-747.42,0.00021917,2]
[368291144,1751094653663,-992.99,0.00021917,2]
[368291145,1751094653672,-659.31,0.00021917,2]
[368291146,1751094653682,-2141.39,0.00021917,2]
[368291147,1751094653692,-668.97,0.00021917,2]